fUSD/lending_fUSD_20260605
["ID","MTS","AMOUNT","RATE_DAILY","PERIOD"]
[424143351,1780609845000,-157.507623,0.00034,120]
[424143359,1780609845000,-2863.2,0.00034182,7]
[424143350,1780609845000,-496.12,0.00034,7]
[424143352,1780609845000,-200.0,0.00034131,2]
[424143353,1780609845000,-1357.0,0.00034143,2]
[424143357,1780609845000,-418.0,0.00034143,2]
[424143327,1780609845000,-688.92,0.00033174,30]
[424143354,1780609845000,-525.0,0.00034143,2]
[424143342,1780609845000,-246.63131635,0.0003369,2]
[424143333,1780609845000,-200.0,0.00033356,2]
[424143321,1780609845000,-274.05,0.000329,120]
[424143324,1780609845000,-454.01,0.00033019,120]
[424143358,1780609845000,-3641.0,0.00034143,2]
[424143296,1780609845000,-500.0,0.00032876,2]
[424143309,1780609845000,-500.0,0.00032876,2]
[424143298,1780609845000,-500.0,0.00032876,2]
[424143300,1780609845000,-627.4181244,0.00032876,2]
[424143299,1780609845000,-500.0,0.00032876,2]
[424143308,1780609845000,-500.0,0.00032876,2]
[424143301,1780609845000,-500.0,0.00032876,2]
[424143304,1780609845000,-500.0,0.00032876,2]
[424143305,1780609845000,-500.0,0.00032876,2]
[424143307,1780609845000,-500.0,0.00032876,2]
[424143303,1780609845000,-500.0,0.00032876,2]
[424143302,1780609845000,-226.8992892,0.00032876,2]
[424143334,1780609845000,-1055.68,0.000334,30]
[424143306,1780609845000,-500.0,0.00032876,2]
[424143310,1780609845000,-500.0,0.00032876,2]
[424143322,1780609845000,-959.27,0.000329,14]
[424143313,1780609845000,-500.0,0.00032876,2]
[424143312,1780609845000,-500.0,0.00032876,2]
[424143314,1780609845000,-500.0,0.00032876,2]
[424143315,1780609845000,-232.56144159,0.00032876,2]
[424143319,1780609845000,-500.6324604,0.00032877,2]
[424143318,1780609845000,-1000.0,0.00032877,120]
[424143320,1780609845000,-244.81576726,0.00032879,2]
[424143317,1780609845000,-1000.0,0.00032877,120]
[424143316,1780609845000,-242.02,0.00032877,2]
[424143335,1780609845000,-12999.0,0.00033431,3]
[424143323,1780609845000,-504.0,0.00032939,8]
[424143311,1780609845000,-500.0,0.00032876,2]
[424143356,1780609845000,-1226.0,0.00034143,2]
[424143297,1780609845000,-500.0,0.00032876,2]
[424143361,1780609845000,-192.2,0.000342,14]
[424143397,1780609845000,-300.68277286,0.00034892,2]
[424143396,1780609845000,-300.0,0.00034892,2]
[424143400,1780609845000,-300.0,0.00034892,2]
[424143399,1780609845000,-300.0,0.00034892,2]
[424143401,1780609845000,-300.0,0.00034892,2]
[424143403,1780609845000,-300.0,0.00034892,2]
[424143410,1780609845000,-300.0,0.00034892,2]
[424143402,1780609845000,-310.31241082,0.00034892,2]
[424143414,1780609845000,-535.22980368,0.00034892,2]
[424143411,1780609845000,-3206.33486172,0.00034892,2]
[424143413,1780609845000,-1069.39140751,0.00034892,2]
[424143412,1780609845000,-300.0,0.00034892,2]
[424143404,1780609845000,-493.81396627,0.00034892,2]
[424143407,1780609845000,-300.0,0.00034892,2]
[424143409,1780609845000,-300.38369239,0.00034892,2]
[424143408,1780609845000,-605.83002711,0.00034892,2]
[424143405,1780609845000,-340.92151356,0.00034892,2]
[424143406,1780609845000,-300.0,0.00034892,2]
[424143415,1780609845000,-727.72406262,0.00034892,2]
[424143418,1780609845000,-425.10253259,0.00034892,2]
[424143417,1780609845000,-302.47682808,0.00034892,2]
[424143416,1780609845000,-525.7013189,0.00034892,2]
[424143425,1780609845000,-300.0,0.00034892,2]
[424143420,1780609845000,-301.27126872,0.00034892,2]
[424143419,1780609845000,-300.0,0.00034892,2]
[424143421,1780609845000,-300.0,0.00034892,2]
[424143424,1780609845000,-300.0,0.00034892,2]
[424143422,1780609845000,-300.0,0.00034892,2]
[424143355,1780609845000,-1273.0,0.00034143,2]
[424143392,1780609845000,-504.0,0.00034873,10]
[424143395,1780609845000,-936.0,0.00034885,3]
[424143423,1780609845000,-300.0,0.00034892,2]
[424143393,1780609845000,-1428.63397015,0.00034879,2]
[424143362,1780609845000,-504.0,0.00034228,9]
[424143363,1780609845000,-1000.0,0.00034247,120]
[424143360,1780609845000,-150.0,0.0003419,2]
[424143371,1780609845000,-339.4217023,0.00034431,5]
[424143372,1780609845000,-400.0,0.00034453,2]
[424143370,1780609845000,-1055.68,0.000343,30]
[424143368,1780609845000,-717.24,0.0003429,2]
[424143367,1780609845000,-500.0,0.0003429,2]
[424143398,1780609845000,-483.14215676,0.00034892,2]
[424143364,1780609845000,-1000.0,0.00034247,120]
[424143365,1780609845000,-500.0,0.0003429,2]
[424143366,1780609845000,-500.54,0.0003429,2]
[424143374,1780609845000,-400.45701247,0.00034453,2]
[424143373,1780609845000,-400.0,0.00034453,2]
[424143369,1780609845000,-500.0,0.0003429,2]
[424143386,1780609845000,-1500.0,0.00034795,2]
[424143394,1780609845000,-163.21051151,0.00034879,7]
[424143385,1780609845000,-6866.1708584,0.00034771,2]
[424143389,1780609845000,-2000.0,0.000348,7]
[424143387,1780609845000,-3500.0,0.000348,2]
[424143391,1780609845000,-500.0,0.00034849,2]
[424143376,1780609845000,-316.13,0.000345,13]
[424143383,1780609845000,-150.0,0.00034694,2]
[424143381,1780609845000,-150.0,0.00034694,2]
[424143380,1780609845000,-150.0,0.00034694,2]
[424143382,1780609845000,-150.0,0.00034694,2]
[424143378,1780609845000,-164.42087757,0.0003469,7]
[424143377,1780609845000,-1781.45481,0.000345,120]
[424143384,1780609845000,-231.0,0.00034694,2]
[424143379,1780609845000,-150.0,0.00034694,2]
[424143476,1780609846000,-1079.85959652,0.00034892,2]
[424143467,1780609846000,-727.72406262,0.00034892,2]
[424143465,1780609846000,-1069.39140751,0.00034892,2]
[424143475,1780609846000,-300.0,0.00034892,2]
[424143474,1780609846000,-300.0,0.00034892,2]
[424143454,1780609846000,-300.0,0.00034892,2]
[424143460,1780609846000,-300.62597199,0.00034892,2]
[424143461,1780609846000,-605.83002711,0.00034892,2]
[424143456,1780609846000,-300.0,0.00034892,2]
[424143458,1780609846000,-493.81396627,0.00034892,2]
[424143455,1780609846000,-300.0,0.00034892,2]
[424143462,1780609846000,-300.0,0.00034892,2]
[424143469,1780609846000,-550.84087796,0.00034892,2]
[424143494,1780609846000,-626.51557854,0.00034892,2]
[424143466,1780609846000,-535.22980368,0.00034892,2]
[424143471,1780609846000,-300.0,0.00034892,2]
[424143468,1780609846000,-302.47682808,0.00034892,2]
[424143470,1780609846000,-301.27126872,0.00034892,2]
[424143473,1780609846000,-300.0,0.00034892,2]
[424143478,1780609846000,-344.73760311,0.00034892,2]
[424143490,1780609846000,-595.33490838,0.00034892,2]
[424143489,1780609846000,-1637.36858291,0.00034892,2]
[424143488,1780609846000,-300.0,0.00034892,2]
[424143491,1780609846000,-300.0,0.00034892,2]
[424143492,1780609846000,-596.79641864,0.00034892,2]
[424143493,1780609846000,-512.46109187,0.00034892,2]
[424143464,1780609846000,-300.0,0.00034892,2]
[424143472,1780609846000,-300.0,0.00034892,2]
[424143452,1780609846000,-503.81736563,0.00034892,2]
[424143440,1780609846000,-300.0,0.00034892,2]
[424143459,1780609846000,-300.0,0.00034892,2]
[424143486,1780609846000,-1801.30324439,0.00034892,2]
[424143426,1780609846000,-1079.85959652,0.00034892,2]
[424143427,1780609846000,-300.0,0.00034892,2]
[424143437,1780609846000,-300.0,0.00034892,2]
[424143428,1780609846000,-344.73760311,0.00034892,2]
[424143439,1780609846000,-595.33490838,0.00034892,2]
[424143438,1780609846000,-1637.36858291,0.00034892,2]
[424143430,1780609846000,-300.6363742,0.00034892,2]
[424143432,1780609846000,-866.34655626,0.00034892,2]
[424143433,1780609846000,-951.1616413,0.00034892,2]
[424143431,1780609846000,-300.76010964,0.00034892,2]
[424143436,1780609846000,-310.31256806,0.00034892,2]
[424143429,1780609846000,-528.08660383,0.00034892,2]
[424143457,1780609846000,-300.0,0.00034892,2]
[424143434,1780609846000,-1801.30324439,0.00034892,2]
[424143442,1780609846000,-512.46109187,0.00034892,2]
[424143444,1780609846000,-452.9387939,0.00034892,2]
[424143443,1780609846000,-626.51557854,0.00034892,2]
[424143441,1780609846000,-300.0,0.00034892,2]
[424143451,1780609846000,-1097.41045792,0.00034892,2]
[424143449,1780609846000,-310.56504798,0.00034892,2]
[424143448,1780609846000,-485.24111317,0.00034892,2]
[424143446,1780609846000,-300.0,0.00034892,2]
[424143445,1780609846000,-300.0,0.00034892,2]
[424143450,1780609846000,-300.0,0.00034892,2]
[424143447,1780609846000,-300.0,0.00034892,2]
[424143453,1780609846000,-300.0,0.00034892,2]
[424143463,1780609846000,-3206.33486172,0.00034892,2]
[424143435,1780609846000,-300.33674651,0.00034892,2]
[424143477,1780609846000,-300.36433874,0.00034892,2]
[424143501,1780609846000,-485.24111317,0.00034892,2]
[424143480,1780609846000,-528.08660383,0.00034892,2]
[424143532,1780609846000,-500.0,0.00034901,60]
[424143531,1780609846000,-151.8478076,0.00034901,60]
[424143528,1780609846000,-309.0,0.000349,2]
[424143530,1780609846000,-967.8691092,0.00034901,60]
[424143529,1780609846000,-719.0682452,0.00034901,60]
[424143533,1780609846000,-924.8490197,0.00034901,60]
[424143534,1780609846000,-562.9797939,0.00034901,60]
[424143536,1780609846000,-891.1008483,0.00034901,60]
[424143539,1780609846000,-554.4033122,0.00034901,60]
[424143535,1780609846000,-500.0,0.00034901,60]
[424143543,1780609846000,-500.0,0.00034901,60]
[424143538,1780609846000,-162.5045091,0.00034901,60]
[424143544,1780609846000,-500.0,0.00034901,60]
[424143527,1780609846000,-749.673451,0.000349,7]
[424143546,1780609846000,-250.0,0.00034906,7]
[424143537,1780609846000,-351.7175535,0.00034901,60]
[424143545,1780609846000,-791.896713,0.00034901,60]
[424143541,1780609846000,-500.0,0.00034901,60]
[424143542,1780609846000,-890.4991091,0.00034901,60]
[424143547,1780609846000,-289.0,0.00034906,2]
[424143549,1780609846000,-251.4274,0.00034908,2]
[424143548,1780609846000,-200.0,0.00034907,2]
[424143554,1780609846000,-1331.0,0.00034915,2]
[424143484,1780609846000,-951.1616413,0.00034892,2]
[424143551,1780609846000,-414.574,0.00034908,2]
[424143550,1780609846000,-4520.1006,0.00034908,2]
[424143553,1780609846000,-401.0,0.00034915,2]
[424143555,1780609846000,-1336.0,0.00034915,2]
[424143540,1780609846000,-500.0,0.00034901,60]
[424143525,1780609846000,-749.673451,0.000349,7]
[424143552,1780609846000,-215.22258569,0.00034915,2]
[424143523,1780609846000,-557.281833,0.000349,7]
[424143526,1780609846000,-749.673451,0.000349,7]
[424143482,1780609846000,-866.34655626,0.00034892,2]
[424143495,1780609846000,-452.9387939,0.00034892,2]
[424143497,1780609846000,-300.0,0.00034892,2]
[424143504,1780609846000,-300.67601483,0.00034892,2]
[424143499,1780609846000,-300.0,0.00034892,2]
[424143502,1780609846000,-310.56504798,0.00034892,2]
[424143506,1780609846000,-300.0,0.00034892,2]
[424143498,1780609846000,-300.0,0.00034892,2]
[424143496,1780609846000,-300.0,0.00034892,2]
[424143507,1780609846000,-300.0,0.00034892,2]
[424143505,1780609846000,-300.0,0.00034892,2]
[424143509,1780609846000,-1097.41045792,0.00034892,2]
[424143508,1780609846000,-300.0,0.00034892,2]
[424143487,1780609846000,-310.31256806,0.00034892,2]
[424143511,1780609846000,-503.81736563,0.00034892,2]
[424143510,1780609846000,-300.0,0.00034892,2]
[424143514,1780609846000,-282.0,0.000349,2]
[424143519,1780609846000,-151.0,0.000349,7]
[424143521,1780609846000,-154.772341,0.000349,7]
[424143513,1780609846000,-1500.0,0.000349,7]
[424143522,1780609846000,-557.281833,0.000349,7]
[424143512,1780609846000,-317.8,0.000349,2]
[424143517,1780609846000,-152.594755,0.000349,7]
[424143518,1780609846000,-557.281833,0.000349,7]
[424143524,1780609846000,-749.673451,0.000349,7]
[424143516,1780609846000,-704.0,0.000349,2]
[424143520,1780609846000,-557.281833,0.000349,7]
[424143515,1780609846000,-200.0,0.000349,12]
[424143584,1780609847000,-1256.34624096,0.00035258,2]
[424143594,1780609847000,-4520.1006,0.00035282,2]
[424143583,1780609847000,-151.27276028,0.00035237,2]
[424143596,1780609847000,-187.729829,0.00035282,7]
[424143590,1780609847000,-151.0,0.00035279,14]
[424143586,1780609847000,-1337.49995464,0.00035258,2]
[424143585,1780609847000,-1325.51127316,0.00035258,2]
[424143589,1780609847000,-151.0,0.00035279,14]
[424143592,1780609847000,-78334.1267739,0.00035282,2]
[424143588,1780609847000,-1338.16,0.00035276,120]
[424143593,1780609847000,-834374.3854398,0.00035282,2]
[424143600,1780609847000,-187.729829,0.00035282,7]
[424143591,1780609847000,-254.35220633,0.00035281,11]
[424143587,1780609847000,-1277.02276303,0.00035258,2]
[424143595,1780609847000,-151.0,0.00035282,7]
[424143599,1780609847000,-187.729829,0.00035282,7]
[424143601,1780609847000,-151.0,0.00035282,7]
[424143604,1780609847000,-256.57751,0.00035282,7]
[424143598,1780609847000,-187.729829,0.00035282,7]
[424143602,1780609847000,-256.57751,0.00035282,7]
[424143603,1780609847000,-256.57751,0.00035282,7]
[424143605,1780609847000,-256.57751,0.00035282,7]
[424143582,1780609847000,-154.2948,0.000352,7]
[424143597,1780609847000,-151.0,0.00035282,7]
[424143577,1780609847000,-834.811559,0.000352,7]
[424143568,1780609847000,-186.6761124,0.00035182,2]
[424143574,1780609847000,-151.0,0.000352,7]
[424143606,1780609847000,-1541.829306,0.00035282,7]
[424143557,1780609847000,-189.9,0.00035,7]
[424143558,1780609847000,-189.9,0.00035,3]
[424143559,1780609847000,-959.27,0.00035,14]
[424143556,1780609847000,-189.9,0.00035,2]
[424143561,1780609847000,-237.57,0.0003503,30]
[424143560,1780609847000,-200.0,0.00035,120]
[424143571,1780609847000,-208.1,0.000352,17]
[424143562,1780609847000,-4520.1006,0.00035033,2]
[424143563,1780609847000,-189.90294625,0.00035068,2]
[424143566,1780609847000,-4520.1006,0.00035158,2]
[424143564,1780609847000,-198.77,0.00035072,2]
[424143570,1780609847000,-144070.7312,0.000352,60]
[424143567,1780609847000,-10000.0,0.00035182,2]
[424143569,1780609847000,-151.0,0.00035197,14]
[424143565,1780609847000,-151.351417,0.00035142,3]
[424143579,1780609847000,-834.811559,0.000352,7]
[424143572,1780609847000,-151.0,0.000352,7]
[424143580,1780609847000,-151.0,0.000352,7]
[424143581,1780609847000,-151.0,0.000352,7]
[424143573,1780609847000,-151.0,0.000352,7]
[424143575,1780609847000,-151.0,0.000352,7]
[424143578,1780609847000,-834.811559,0.000352,7]
[424143576,1780609847000,-834.811559,0.000352,7]
[424143609,1780609847000,-1541.829306,0.00035282,7]
[424143617,1780609847000,-500.0,0.00035282,2]
[424143608,1780609847000,-1541.829306,0.00035282,7]
[424143634,1780609847000,-500.0,0.00035282,2]
[424143639,1780609847000,-500.0,0.00035282,2]
[424143637,1780609847000,-500.0,0.00035282,2]
[424143638,1780609847000,-500.0,0.00035282,2]
[424143641,1780609847000,-500.0,0.00035282,2]
[424143646,1780609847000,-500.0,0.00035282,2]
[424143643,1780609847000,-500.0,0.00035282,2]
[424143648,1780609847000,-500.0,0.00035282,2]
[424143644,1780609847000,-500.0,0.00035282,2]
[424143645,1780609847000,-500.0,0.00035282,2]
[424143651,1780609847000,-500.0,0.00035282,2]
[424143650,1780609847000,-500.0,0.00035282,2]
[424143647,1780609847000,-500.0,0.00035282,2]
[424143649,1780609847000,-500.0,0.00035282,2]
[424143652,1780609847000,-500.0,0.00035282,2]
[424143653,1780609847000,-500.0,0.00035282,2]
[424143654,1780609847000,-500.0,0.00035282,2]
[424143657,1780609847000,-500.0,0.00035282,2]
[424143656,1780609847000,-500.0,0.00035282,2]
[424143659,1780609847000,-500.0,0.00035282,2]
[424143658,1780609847000,-151.0,0.00035282,7]
[424143660,1780609847000,-500.0,0.00035282,2]
[424143607,1780609847000,-1541.829306,0.00035282,7]
[424143632,1780609847000,-500.0,0.00035282,2]
[424143633,1780609847000,-500.0,0.00035282,2]
[424143642,1780609847000,-500.0,0.00035282,2]
[424143630,1780609847000,-500.0,0.00035282,2]
[424143640,1780609847000,-500.0,0.00035282,2]
[424143610,1780609847000,-500.0,0.00035282,2]
[424143614,1780609847000,-500.0,0.00035282,2]
[424143611,1780609847000,-500.0,0.00035282,2]
[424143615,1780609847000,-500.0,0.00035282,2]
[424143612,1780609847000,-500.0,0.00035282,2]
[424143613,1780609847000,-500.0,0.00035282,2]
[424143618,1780609847000,-500.0,0.00035282,2]
[424143627,1780609847000,-500.0,0.00035282,2]
[424143655,1780609847000,-500.0,0.00035282,2]
[424143628,1780609847000,-500.0,0.00035282,2]
[424143620,1780609847000,-500.0,0.00035282,2]
[424143616,1780609847000,-500.0,0.00035282,2]
[424143621,1780609847000,-500.0,0.00035282,2]
[424143636,1780609847000,-500.0,0.00035282,2]
[424143631,1780609847000,-500.0,0.00035282,2]
[424143629,1780609847000,-500.0,0.00035282,2]
[424143626,1780609847000,-500.0,0.00035282,2]
[424143625,1780609847000,-500.0,0.00035282,2]
[424143635,1780609847000,-500.0,0.00035282,2]
[424143622,1780609847000,-500.0,0.00035282,2]
[424143623,1780609847000,-500.0,0.00035282,2]
[424143619,1780609847000,-500.0,0.00035282,2]
[424143624,1780609847000,-500.0,0.00035282,2]
[424143700,1780609848000,-151.0,0.000356,7]
[424143691,1780609848000,-151.0,0.000356,7]
[424143692,1780609848000,-278.369135,0.000356,7]
[424143689,1780609848000,-1765.5,0.00035589,120]
[424143693,1780609848000,-151.0,0.000356,7]
[424143696,1780609848000,-151.0,0.000356,7]
[424143695,1780609848000,-151.0,0.000356,7]
[424143697,1780609848000,-246.517908,0.000356,7]
[424143698,1780609848000,-246.517908,0.000356,7]
[424143694,1780609848000,-151.0,0.000356,7]
[424143699,1780609848000,-246.517908,0.000356,7]
[424143702,1780609848000,-151.0,0.000356,7]
[424143713,1780609848000,-164.42087757,0.0003569,7]
[424143710,1780609848000,-4932.1,0.00035657,2]
[424143703,1780609848000,-151.0,0.000356,7]
[424143704,1780609848000,-151.0,0.000356,7]
[424143708,1780609848000,-242.02,0.00035616,2]
[424143709,1780609848000,-4520.1006,0.00035656,2]
[424143705,1780609848000,-2000.0,0.00035616,30]
[424143706,1780609848000,-477.81492599,0.00035616,7]
[424143707,1780609848000,-166.23,0.00035616,30]
[424143711,1780609848000,-889.17,0.00035657,7]
[424143714,1780609848000,-150.0,0.000357,120]
[424143716,1780609848000,-150.0,0.0003575,120]
[424143690,1780609848000,-1124.0,0.00035589,120]
[424143701,1780609848000,-246.517908,0.000356,7]
[424143684,1780609848000,-504.0,0.00035518,11]
[424143662,1780609848000,-500.0,0.00035282,2]
[424143683,1780609848000,-200.0,0.000355,14]
[424143661,1780609848000,-500.0,0.00035282,2]
[424143715,1780609848000,-1688.67,0.00035722,7]
[424143663,1780609848000,-500.0,0.00035282,2]
[424143664,1780609848000,-151.0,0.00035282,7]
[424143665,1780609848000,-298.342053,0.00035282,2]
[424143667,1780609848000,-1055.68,0.000353,30]
[424143677,1780609848000,-237.57,0.0003546,69]
[424143670,1780609848000,-151.0,0.00035334,14]
[424143666,1780609848000,-151.0,0.00035282,7]
[424143668,1780609848000,-12250.0852905,0.00035321,120]
[424143675,1780609848000,-151.0,0.00035407,7]
[424143669,1780609848000,-1245.24964235,0.00035321,120]
[424143671,1780609848000,-5857.4544482,0.00035337,2]
[424143674,1780609848000,-538.16447625,0.00035353,2]
[424143676,1780609848000,-4520.1006,0.00035407,2]
[424143672,1780609848000,-1038.4812984,0.00035347,7]
[424143673,1780609848000,-11152.97,0.0003535,30]
[424143678,1780609848000,-150.0,0.00035461,120]
[424143680,1780609848000,-1817.868299,0.00035481,30]
[424143681,1780609848000,-1817.868299,0.00035481,30]
[424143679,1780609848000,-1817.868299,0.00035481,30]
[424143688,1780609848000,-1765.5,0.00035589,120]
[424143686,1780609848000,-421.0,0.00035564,30]
[424143687,1780609848000,-780.0,0.00035582,3]
[424143682,1780609848000,-1817.868299,0.00035481,30]
[424143685,1780609848000,-4520.1006,0.00035532,2]
[424143720,1780609848000,-200.0,0.00035771,5]
[424143712,1780609848000,-200.0,0.00035682,2]
[424143719,1780609848000,-200.0,0.0003577,5]
[424143749,1780609848000,-557.281833,0.00035921,30]
[424143751,1780609848000,-557.281833,0.00035921,30]
[424143750,1780609848000,-151.0,0.00035921,30]
[424143752,1780609848000,-557.281833,0.00035921,30]
[424143755,1780609848000,-749.673451,0.00035921,30]
[424143754,1780609848000,-749.673451,0.00035921,30]
[424143753,1780609848000,-557.281833,0.00035921,30]
[424143756,1780609848000,-749.673451,0.00035921,30]
[424143758,1780609848000,-151.0,0.00035942,14]
[424143768,1780609848000,-151.27276028,0.00035964,2]
[424143757,1780609848000,-749.673451,0.00035921,30]
[424143760,1780609848000,-150.0,0.00035951,2]
[424143748,1780609848000,-151.0,0.00035921,30]
[424143764,1780609848000,-400.0,0.00035951,2]
[424143765,1780609848000,-400.0,0.00035951,2]
[424143767,1780609848000,-408.05579473,0.00035951,2]
[424143761,1780609848000,-150.33205177,0.00035951,2]
[424143763,1780609848000,-501.07670411,0.00035951,2]
[424143766,1780609848000,-407.0,0.00035951,2]
[424143770,1780609848000,-152.0,0.00035995,30]
[424143769,1780609848000,-688.92,0.00035967,30]
[424143771,1780609848000,-152.0,0.00035995,30]
[424143773,1780609848000,-152.0,0.00035995,30]
[424143772,1780609848000,-152.0,0.00035995,30]
[424143718,1780609848000,-200.0,0.0003577,5]
[424143774,1780609848000,-152.0,0.00035995,30]
[424143762,1780609848000,-500.0,0.00035951,2]
[424143746,1780609848000,-834.811559,0.00035921,7]
[424143759,1780609848000,-151.0,0.00035942,14]
[424143739,1780609848000,-242.915901,0.00035921,30]
[424143721,1780609848000,-200.0,0.00035774,5]
[424143747,1780609848000,-151.0,0.00035921,30]
[424143723,1780609848000,-4520.1006,0.00035781,2]
[424143732,1780609848000,-237.58,0.000359,98]
[424143730,1780609848000,-163.21051151,0.00035879,7]
[424143731,1780609848000,-150.0,0.00035899,2]
[424143729,1780609848000,-150.0,0.0003585,120]
[424143722,1780609848000,-251.4274,0.00035781,2]
[424143726,1780609848000,-200.0,0.00035791,5]
[424143725,1780609848000,-200.0,0.0003579,5]
[424143724,1780609848000,-414.574,0.00035781,2]
[424143728,1780609848000,-248.2589092,0.00035817,7]
[424143727,1780609848000,-150.0,0.000358,120]
[424143717,1780609848000,-200.0,0.0003577,5]
[424143741,1780609848000,-151.0,0.00035921,30]
[424143735,1780609848000,-151.0,0.00035914,30]
[424143736,1780609848000,-151.0,0.00035914,30]
[424143737,1780609848000,-151.0,0.00035914,30]
[424143738,1780609848000,-835323.5838,0.00035921,30]
[424143745,1780609848000,-834.811559,0.00035921,7]
[424143743,1780609848000,-834.811559,0.00035921,7]
[424143734,1780609848000,-4520.1006,0.00035906,2]
[424143740,1780609848000,-151.0,0.00035921,30]
[424143744,1780609848000,-834.811559,0.00035921,7]
[424143733,1780609848000,-2000.0,0.000359,7]
[424143742,1780609848000,-151.0,0.00035921,30]
[424143808,1780609849000,-94810.91404648,0.00036195,2]
[424143813,1780609849000,-151.0,0.00036195,2]
[424143811,1780609849000,-151.0,0.00036195,30]
[424143810,1780609849000,-10000.0,0.00036195,2]
[424143806,1780609849000,-151.0,0.00036192,14]
[424143805,1780609849000,-14266.0,0.00036164,2]
[424143807,1780609849000,-571996.07029084,0.00036195,2]
[424143815,1780609849000,-151.0,0.00036195,30]
[424143812,1780609849000,-151.0,0.00036195,30]
[424143816,1780609849000,-151.0,0.00036195,30]
[424143814,1780609849000,-151.0,0.00036195,30]
[424143809,1780609849000,-2000.3714,0.00036195,2]
[424143828,1780609849000,-187.729829,0.00036195,30]
[424143820,1780609849000,-246.517908,0.00036195,30]
[424143817,1780609849000,-151.0,0.00036195,30]
[424143821,1780609849000,-151.0,0.00036195,30]
[424143819,1780609849000,-246.517908,0.00036195,30]
[424143824,1780609849000,-151.0,0.00036195,30]
[424143827,1780609849000,-187.729829,0.00036195,30]
[424143825,1780609849000,-151.0,0.00036195,30]
[424143823,1780609849000,-151.0,0.00036195,30]
[424143826,1780609849000,-187.729829,0.00036195,30]
[424143822,1780609849000,-246.517908,0.00036195,30]
[424143830,1780609849000,-151.0,0.00036195,30]
[424143831,1780609849000,-256.57751,0.00036195,30]
[424143829,1780609849000,-187.729829,0.00036195,30]
[424143818,1780609849000,-246.517908,0.00036195,30]
[424143800,1780609849000,-2863.2,0.00036153,30]
[424143779,1780609849000,-249.96340179,0.00036005,2]
[424143794,1780609849000,-8280.72792878,0.00036141,2]
[424143840,1780609849000,-172.0,0.0003624,120]
[424143775,1780609849000,-216.36941492,0.00036,60]
[424143777,1780609849000,-3000.0,0.00036,30]
[424143776,1780609849000,-215.73365239,0.00036,30]
[424143778,1780609849000,-366.16950092,0.00036005,2]
[424143781,1780609849000,-186.04151345,0.00036005,2]
[424143791,1780609849000,-217.39233921,0.00036121,60]
[424143780,1780609849000,-186.04151345,0.00036005,2]
[424143784,1780609849000,-161.93,0.00036045,60]
[424143783,1780609849000,-4520.1006,0.0003603,2]
[424143790,1780609849000,-2001.05,0.00036096,120]
[424143782,1780609849000,-217.39,0.00036021,60]
[424143786,1780609849000,-152.0,0.00036067,30]
[424143789,1780609849000,-4000.0,0.00036095,2]
[424143785,1780609849000,-152.0,0.00036067,30]
[424143788,1780609849000,-152.0,0.00036067,30]
[424143787,1780609849000,-152.0,0.00036067,30]
[424143793,1780609849000,-152.0,0.00036139,30]
[424143804,1780609849000,-982.0,0.00036164,2]
[424143798,1780609849000,-5000.0,0.00036141,2]